[Event "5th EKA IIFL Investment 2019"]
[Site "Mumbai"]
[Date "2020.01.06"]
[Round "8.5"]
[White "Neverov, Valeriy"]
[Black "Tukhaev, Adam"]
[Result "1/2-1/2"]
[ECO "D20"]
[WhiteElo "2460"]
[BlackElo "2552"]
[Annotator "RC"]
[PlyCount "93"]
[EventDate "2019.12.30"]
[EventType "swiss"]
[EventCountry "IND"]
[SourceTitle "playchess.com"]
[Source "ChessBase"]
[SourceQuality "1"]
[TimeControl "40/5400+30:1800+30"]

1. d4 {[%emt 0:00:00]} d5 {[%emt 0:00:11]} 2. c4 {[%emt 0:00:00]} dxc4 {[%emt 0:00:16]} 3. e4 {[%emt 0:06:22]} b5 {[%emt 0:01:25]} 4. a4 {[%emt 0:04:19]} c6 {[%emt 0:00:48]} 5. axb5 {[%emt 0:07:19]} cxb5 {[%emt 0:02:43]} 6. b3 {[%emt 0:14:11]} e5 {[%emt 0:00:36]} 7. Nf3 {[%emt 0:00:49]} exd4 {[%emt 0:18:22]} 8. bxc4 {[%emt 0:04:56]} b4 {[%emt 0:01:59]} 9. Nbd2 {[%emt 0:02:42]} Nc6 {[%emt 0:05:32]} 10. Nb3 {[%emt 0:02:49]} Nf6 {[%emt 0:05:58]} 11. c5 {[%emt 0:02:46]} Be7 {[%emt 0:05:44]} 12. Bb5 {[%emt 0:02:59]} Bd7 {[%emt 0:01:59]} 13. Qd3 {[%emt 0:04:43]} O-O {[%emt 0:03:19]} 14. O-O {[%emt 0:01:10]} Qc7 {[%emt 0:10:06]} 15. Re1 {[%emt 0:00:26]} Ne5 {[%emt 0:12:59]} 16. Nxe5 {[%emt 0:01:31]} Bxb5 {[%emt 0:00:04]} 17. Qxb5 {[%emt 0:00:55]} Qxe5 {[%emt 0:00:03]} 18. h3 {[%emt 0:10:50]} d3 {[%emt 0:10:25]} 19. Bd2 {[%emt 0:04:24]} Rfd8 {[%emt 0:04:00]} 20. Qxb4 {[%emt 0:12:08]} Rab8 {[%emt 0:00:39]} 21. Qc4 {[%emt 0:00:25]} Qe6 {[%emt 0:03:38]} 22. Qxe6 fxe6 {[%emt 0:00:04]} 23. Rxa7 {[%emt 0:08:51]} Rxb3 {[%emt 0:00:05]} 24. Rxe7 {[%emt 0:00:03]} Rb2 {[%emt 0:00:03]} 25. Be3 {[%emt 0:00:53]} Nxe4 {[%emt 0:01:44]} 26. c6 {[%emt 0:00:14]} Rc2 {[%emt 0:02:48]} 27. Rxe6 {[%emt 0:05:34]} d2 {[%emt 0:00:38]} 28. Rd1 {[%emt 0:00:07]} Rc1 {[%emt 0:01:16]} 29. Rxc1 {[%emt 0:00:03]} dxc1=Q+ {[%emt 0:00:06]} 30. Bxc1 {[%emt 0:00:02]} Rd1+ {[%emt 0:00:08]} 31. Kh2 {[%emt 0:00:02]} Rxc1 {[%emt 0:00:07]} 32. Rxe4 {[%emt 0:00:29]} Rxc6 33. g4 {[%emt 0:02:24]} Kf7 {[%emt 0:00:15]} 34. h4 {[%emt 0:00:29]} Rc3 {[%emt 0:03:37]} 35. Kg2 {[%emt 0:00:07]} h6 {[%emt 0:01:21]} 36. Re5 {[%emt 0:00:55]} Ra3 {[%emt 0:00:41]} 37. f3 {[%emt 0:00:10]} Rb3 {[%emt 0:00:41]} 38. Kg3 {[%emt 0:00:03]} Ra3 {[%emt 0:00:33]} 39. h5 {[%emt 0:01:23]} Ra4 {[%emt 0:00:38]} 40. Re4 {[%emt 0:00:00]} Ra3 {[%emt 0:00:00]} 41. Kf4 {[%emt 0:01:19]} Kf6 {[%emt 0:03:51]} 42. Rd4 {[%emt 0:03:08]} Ra6 {[%emt 0:01:27]} 43. Ke4 {[%emt 0:00:26]} Ra1 {[%emt 0:03:55]} 44. Rd6+ {[%emt 0:00:59]} Ke7 {[%emt 0:00:19]} 45. Rc6 {[%emt 0:05:27]} Kf7 {[%emt 0:00:27]} 46. Rc4 {[%emt 0:00:19]} Kf6 {[%emt 0:00:53]} 47. Rc6+ {Ke5+} 1/2-1/2

[Event "5th EKA IIFL Investment 2019"]
[Site "Mumbai"]
[Date "2020.01.06"]
[Round "8.6"]
[White "Chanda, Sandipan"]
[Black "Mohammad Fahad, Rahman"]
[Result "1-0"]
[ECO "E46"]
[WhiteElo "2545"]
[BlackElo "2294"]
[Annotator "RC"]
[PlyCount "53"]
[EventDate "2019.12.30"]
[EventType "swiss"]
[EventCountry "IND"]
[SourceTitle "playchess.com"]
[Source "ChessBase"]
[SourceQuality "1"]
[TimeControl "40/5400+30:1800+30"]

1. d4 {[%emt 0:00:00]} Nf6 {[%emt 0:00:00]} 2. c4 {[%emt 0:00:00]} e6 {[%emt 0:00:00]} 3. Nc3 {[%emt 0:00:00]} Bb4 {[%emt 0:00:05]} 4. e3 {[%emt 0:00:00]} O-O {[%emt 0:00:12]} 5. Bd2 {[%emt 0:00:12]} d5 {[%emt 0:00:29]} 6. Nf3 {[%emt 0:00:11]} b6 {[%emt 0:00:11]} 7. cxd5 {[%emt 0:00:14]} exd5 {[%emt 0:00:09]} 8. Bd3 {[%emt 0:00:12]} Bb7 {[%emt 0:00:58]} 9. O-O {[%emt 0:02:05]} Bd6 {[%emt 0:02:52]} 10. Qb1 {[%emt 0:00:22]} Re8 {[%emt 0:01:48]} 11. b4 {[%emt 0:00:19]} a6 {[%emt 0:21:51]} 12. b5 {[%emt 0:00:18]} axb5 {[%emt 0:05:12]} 13. Nxb5 {[%emt 0:00:10]} Bf8 {[%emt 0:00:54]} 14. Ng5 {[%emt 0:00:16]} g6 {[%emt 0:03:30]} 15. f4 {[%emt 0:00:08]} Nbd7 {[%emt 0:14:32]} 16. f5 {[%emt 0:12:53]} Bh6 {[%emt 0:02:34]} 17. e4 Nxe4 {[%emt 0:17:32]} 18. fxg6 {[%emt 0:41:15]} Nxd2 {[%emt 0:02:04]} 19. gxf7+ {[%emt 0:01:04]} Kg7 {[%emt 0:01:06]} 20. Nxc7 {[%emt 0:01:52]} Qxc7 {[%emt 0:12:48]} 21. fxe8=N+ {[%emt 0:00:13]} Rxe8 {[%emt 0:00:08]} 22. Rf7+ {[%emt 0:00:25]} Kh8 {[%emt 0:04:45]} 23. Qd1 {[%emt 0:03:00]} Bg7 {[%emt 0:02:49]} 24. Qh5 {[%emt 0:06:30]} Bxd4+ {[%emt 0:00:17]} 25. Kh1 {[%emt 0:00:04]} Nf6 {[%emt 0:00:05]} 26. Rxf6 {[%emt 0:00:27]} Qe7 {[%emt 0:01:05]} 27. Nf7+ {[%emt 0:00:31]} 1-0

[Event "5th EKA IIFL Investment 2019"]
[Site "Mumbai"]
[Date "2020.01.06"]
[Round "8.7"]
[White "Yudin, Sergei"]
[Black "Abdisalimov, Abdimalik"]
[Result "0-1"]
[ECO "B53"]
[WhiteElo "2497"]
[BlackElo "2394"]
[Annotator "RC"]
[PlyCount "120"]
[EventDate "2019.12.30"]
[EventType "swiss"]
[EventCountry "IND"]
[SourceTitle "playchess.com"]
[Source "ChessBase"]
[SourceQuality "1"]
[TimeControl "40/5400+30:1800+30"]

1. e4 {[%emt 0:02:41]} c5 {[%emt 0:01:08]} 2. Nf3 {[%emt 0:00:09]} d6 {[%emt 0:00:04]} 3. d4 {[%emt 0:00:05]} cxd4 {[%emt 0:00:04]} 4. Qxd4 {[%emt 0:00:07]} a6 {[%emt 0:02:30]} 5. h3 {[%emt 0:02:08]} Nc6 {[%emt 0:00:15]} 6. Qe3 {[%emt 0:00:07]} Nf6 {[%emt 0:04:52]} 7. Be2 {[%emt 0:01:56]} g6 {[%emt 0:07:14]} 8. O-O {[%emt 0:00:34]} Bg7 {[%emt 0:00:03]} 9. c4 {[%emt 0:06:48]} O-O {[%emt 0:00:26]} 10. Nc3 {[%emt 0:00:18]} Nd7 {[%emt 0:00:28]} 11. b3 {[%emt 0:00:07]} Nde5 {[%emt 0:05:46]} 12. Rd1 {[%emt 0:04:26]} Nxf3+ {[%emt 0:00:17]} 13. Bxf3 {[%emt 0:00:19]} Rb8 {[%emt 0:00:35]} 14. Bb2 {[%emt 0:06:11]} Qa5 {[%emt 0:00:07]} 15. a3 {[%emt 0:06:24]} Qc5 {[%emt 0:05:12]} 16. Qd3 {[%emt 0:00:34]} Ne5 {[%emt 0:16:57]} 17. Qe2 {[%emt 0:00:12]} Be6 {[%emt 0:00:51]} 18. Rac1 {[%emt 0:00:25]} Qb6 {[%emt 0:00:41]} 19. Qc2 {[%emt 0:00:42]} Nxf3+ {[%emt 0:02:35]} 20. gxf3 Bxh3 {[%emt 0:00:41]} 21. Nd5 {[%emt 0:00:03]} Qd8 {[%emt 0:00:14]} 22. Bxg7 {[%emt 0:01:42]} Kxg7 {[%emt 0:02:26]} 23. e5 {[%emt 0:02:00]} dxe5 {[%emt 0:05:51]} 24. Qc3 {[%emt 0:00:16]} f6 {[%emt 0:04:56]} 25. Nxf6 {[%emt 0:00:52]} Qc8 {[%emt 0:00:05]} 26. Ne4 {[%emt 0:03:03]} Qf5 {[%emt 0:02:23]} 27. Rd3 {[%emt 0:02:30]} Rbd8 {[%emt 0:08:28]} 28. Re3 {[%emt 0:02:26]} Rd4 {[%emt 0:08:16]} 29. Rce1 {[%emt 0:05:32]} Rxe4 {[%emt 0:00:51]} 30. Rxe4 {[%emt 0:00:12]} Qg5+ {[%emt 0:00:05]} 31. Rg4 {[%emt 0:00:06]} Bxg4 {[%emt 0:00:03]} 32. fxg4 {[%emt 0:00:06]} Qxg4+ {[%emt 0:00:04]} 33. Kf1 {[%emt 0:00:05]} Rf6 {[%emt 0:10:17]} 34. Qxe5 {[%emt 0:00:16]} Qh3+ {[%emt 0:06:41]} 35. Kg1 {[%emt 0:00:12]} e6 {[%emt 0:01:18]} 36. Qd4 {[%emt 0:08:01]} h5 {[%emt 0:04:28]} 37. Re3 {[%emt 0:02:37]} Qf5 {[%emt 0:00:05]} 38. Re5 {[%emt 0:00:06]} Qh3 {[%emt 0:00:20]} 39. Qd7+ {[%emt 0:00:39]} Kh6 {[%emt 0:00:06]} 40. Qd2+ {[%emt 0:00:00]} Kg7 {[%emt 0:00:00]} 41. Qd7+ {[%emt 0:04:25]} Rf7 {[%emt 0:00:28]} 42. Qd4 {[%emt 0:00:55]} Kh7 {[%emt 0:01:28]} 43. Re3 {[%emt 0:07:59]} Qf5 {[%emt 0:00:36]} 44. Re4 {[%emt 0:00:13]} Qg5+ {[%emt 0:02:18]} 45. Kf1 {[%emt 0:01:06]} Qc1+ {[%emt 0:01:52]} 46. Kg2 {[%emt 0:00:07]} Qxa3 {[%emt 0:00:53]} 47. Rxe6 {[%emt 0:00:14]} Qxb3 {[%emt 0:00:18]} 48. Qe4 {[%emt 0:00:05]} Rg7 {[%emt 0:00:08]} 49. Re5 {[%emt 0:00:51]} Qd1 {[%emt 0:00:17]} 50. f3 {[%emt 0:00:02]} Qd2+ {[%emt 0:01:18]} 51. Kh3 {[%emt 0:00:14]} Kh6 {[%emt 0:01:53]} 52. Rd5 {[%emt 0:00:26]} Qc1 {[%emt 0:00:57]} 53. Rd8 {[%emt 0:04:32]} Kh7 {[%emt 0:11:43]} 54. Rf8 {[%emt 0:11:32]} Qc3 {[%emt 0:05:23]} 55. Rb8 {[%emt 0:02:02]} Qb3 {[%emt 0:00:40]} 56. c5 {[%emt 0:00:15]} Qf7 {[%emt 0:00:39]} 57. Kg2 {[%emt 0:00:16]} Qe7 {[%emt 0:00:51]} 58. Qd4 {[%emt 0:00:19]} Qd7 {[%emt 0:00:29]} 59. Qf6 {[%emt 0:00:27]} Qe7 {[%emt 0:00:59]} 60. Qd4 {[%emt 0:00:44]} Rg8 {[%emt 0:00:37]} 0-1

[Event "5th EKA IIFL Investment 2019"]
[Site "Mumbai"]
[Date "2020.01.06"]
[Round "8.8"]
[White "Sardana, Rishi"]
[Black "Manik, Mikulas"]
[Result "1-0"]
[ECO "A03"]
[WhiteElo "2428"]
[BlackElo "2379"]
[Annotator "RC"]
[PlyCount "36"]
[EventDate "2019.12.30"]
[EventType "swiss"]
[EventCountry "IND"]
[SourceTitle "playchess.com"]
[Source "ChessBase"]
[SourceQuality "1"]
[TimeControl "40/5400+30:1800+30"]

1. f4 {[%emt 0:00:00]} d5 {[%emt 0:00:00]} 2. Nf3 {[%emt 0:00:02]} g6 {[%emt 0:00:43]} 3. g3 {[%emt 0:00:06]} Bg7 {[%emt 0:00:46]} 4. Bg2 {[%emt 0:00:08]} c5 {[%emt 0:03:23]} 5. O-O {[%emt 0:00:14]} Nh6 {[%emt 0:02:11]} 6. d3 {[%emt 0:00:10]} d4 {[%emt 0:00:16]} 7. c3 {[%emt 0:00:41]} O-O {[%emt 0:03:15]} 8. e4 {[%emt 0:01:17]} dxe3 {[%emt 0:00:47]} 9. Bxe3 {[%emt 0:00:07]} Qc7 {[%emt 0:00:53]} 10. Na3 {[%emt 0:06:21]} Ng4 {[%emt 0:03:47]} 11. Qe2 {[%emt 0:04:17]} Nd7 {[%emt 0:06:40]} 12. Bd2 {[%emt 0:02:03]} e5 {[%emt 0:05:14]} 13. Nc4 {[%emt 0:09:16]} exf4 {[%emt 0:06:46]} 14. Bxf4 {[%emt 0:00:23]} Qd8 {[%emt 0:00:03]} 15. Rae1 {[%emt 0:16:23]} b5 {[%emt 0:09:35]} 16. Nd6 {[%emt 0:03:20]} Ndf6 {[%emt 0:13:42]} 17. Ng5 {[%emt 0:05:28]} Bd7 {[%emt 0:00:45]} 18. Ngxf7 {[%emt 0:07:27]} Qb6 {[%emt 0:00:55]} 1-0

[Event "5th EKA IIFL Investment 2019"]
[Site "Mumbai"]
[Date "2020.01.06"]
[Round "8.9"]
[White "Puranik, Abhimanyu"]
[Black "Eraschenkov, Denis"]
[Result "1-0"]
[ECO "A20"]
[WhiteElo "2580"]
[BlackElo "2386"]
[Annotator "RC"]
[PlyCount "76"]
[EventDate "2019.12.30"]
[EventType "swiss"]
[EventCountry "IND"]
[SourceTitle "playchess.com"]
[Source "ChessBase"]
[SourceQuality "1"]
[TimeControl "40/5400+30:1800+30"]

1. c4 {[%emt 0:00:00]} e5 {[%emt 0:00:00]} 2. g3 {[%emt 0:00:00]} Nf6 {[%emt 0:00:06]} 3. Bg2 {[%emt 0:00:13]} Nc6 {[%emt 0:04:44]} 4. Nf3 {[%emt 0:01:10]} Bc5 {[%emt 0:04:44]} 5. O-O {[%emt 0:02:45]} d6 {[%emt 0:00:33]} 6. Nc3 {[%emt 0:01:02]} O-O {[%emt 0:10:56]} 7. d3 {[%emt 0:00:44]} h6 {[%emt 0:01:45]} 8. b3 {[%emt 0:01:44]} Bg4 {[%emt 0:06:34]} 9. h3 {[%emt 0:05:20]} Bh5 {[%emt 0:13:00]} 10. Bb2 {[%emt 0:11:06]} Nd7 {[%emt 0:06:07]} 11. Ne4 {[%emt 0:16:52]} Bxf3 {[%emt 0:15:53]} 12. Bxf3 {[%emt 0:00:12]} Bd4 {[%emt 0:00:09]} 13. Nc3 {[%emt 0:01:06]} f5 {[%emt 0:03:00]} 14. e3 {[%emt 0:00:52]} Bb6 {[%emt 0:00:12]} 15. Nd5 {[%emt 0:02:03]} Nf6 {[%emt 0:00:42]} 16. b4 {[%emt 0:02:11]} Nxd5 {[%emt 0:05:43]} 17. Bxd5+ {[%emt 0:00:21]} Kh8 {[%emt 0:00:31]} 18. b5 {[%emt 0:03:37]} Na5 {[%emt 0:01:51]} 19. Bc3 {[%emt 0:12:10]} c6 {[%emt 0:02:02]} 20. bxc6 {[%emt 0:00:42]} Nxc6 {[%emt 0:02:45]} 21. Kh2 {[%emt 0:03:02]} Rc8 {[%emt 0:02:56]} 22. Rb1 {[%emt 0:03:03]} Qe7 {[%emt 0:06:41]} 23. Qf3 {[%emt 0:06:56]} f4 {[%emt 0:05:11]} 24. Qe4 {[%emt 0:01:30]} fxe3 {[%emt 0:00:44]} 25. fxe3 {[%emt 0:00:06]} Qg5 {[%emt 0:01:46]} 26. Bd2 {[%emt 0:02:45]} Ne7 {[%emt 0:01:53]} 27. Be6 {[%emt 0:01:35]} Rb8 {[%emt 0:00:46]} 28. Bf7 {[%emt 0:02:52]} g6 {[%emt 0:00:29]} 29. Rf3 {[%emt 0:07:07]} Nf5 {[%emt 0:01:02]} 30. Bd5 {[%emt 0:01:07]} Nd4 {[%emt 0:00:38]} 31. Rxf8+ {[%emt 0:04:08]} Rxf8 {[%emt 0:00:05]} 32. Qg2 {[%emt 0:01:43]} Nf5 {[%emt 0:01:11]} 33. Rf1 {[%emt 0:00:25]} Kg7 {[%emt 0:00:47]} 34. e4 {[%emt 0:01:29]} Be3 {[%emt 0:00:48]} 35. exf5 {[%emt 0:01:54]} Bxd2 {[%emt 0:00:07]} 36. h4 {[%emt 0:00:43]} Qe3 {[%emt 0:00:18]} 37. Rf3 {[%emt 0:01:34]} Qe1 {[%emt 0:00:19]} 38. fxg6 {[%emt 0:00:19]} Rg8 1-0

[Event "5th EKA IIFL Investment 2019"]
[Site "Mumbai"]
[Date "2020.01.06"]
[Round "8.10"]
[White "David, Alberto"]
[Black "Czebe, Attila"]
[Result "1-0"]
[ECO "E70"]
[WhiteElo "2545"]
[BlackElo "2374"]
[Annotator "RC"]
[PlyCount "49"]
[EventDate "2019.12.30"]
[EventType "swiss"]
[EventCountry "IND"]
[SourceTitle "playchess.com"]
[Source "ChessBase"]
[SourceQuality "1"]
[TimeControl "40/5400+30:1800+30"]

1. d4 {[%emt 0:00:00]} Nf6 {[%emt 0:02:13]} 2. c4 {[%emt 0:00:00]} g6 {[%emt 0:00:11]} 3. Nc3 {[%emt 0:01:32]} Bg7 {[%emt 0:00:04]} 4. e4 {[%emt 0:00:03]} O-O {[%emt 0:00:04]} 5. f3 {[%emt 0:04:41]} c6 {[%emt 0:01:29]} 6. h4 {[%emt 0:13:45]} d6 {[%emt 0:10:51]} 7. Nge2 {[%emt 0:04:53]} e5 {[%emt 0:00:13]} 8. d5 cxd5 {[%emt 0:00:16]} 9. cxd5 {[%emt 0:00:46]} Nh5 {[%emt 0:02:49]} 10. g4 {[%emt 0:01:07]} Nf4 {[%emt 0:00:04]} 11. Nxf4 {[%emt 0:01:26]} exf4 {[%emt 0:00:16]} 12. Bxf4 {[%emt 0:00:21]} f5 {[%emt 0:01:06]} 13. gxf5 {[%emt 0:03:34]} gxf5 {[%emt 0:00:03]} 14. Qd2 {[%emt 0:01:53]} fxe4 {[%emt 0:00:04]} 15. O-O-O {[%emt 0:01:07]} Qf6 {[%emt 0:04:15]} 16. Bg5 {[%emt 0:03:38]} Qe5 {[%emt 0:00:05]} 17. Rg1 {[%emt 0:04:38]} Bf5 {[%emt 0:02:03]} 18. Be3 {[%emt 0:06:24]} Bg6 {[%emt 0:01:00]} 19. f4 {[%emt 0:00:38]} Qe7 {[%emt 0:05:29]} 20. Bh3 {[%emt 0:01:04]} Nd7 {[%emt 0:03:24]} 21. h5 {[%emt 0:08:17]} Bxh5 {[%emt 0:00:02]} 22. Be6+ {[%emt 0:00:06]} Kh8 {[%emt 0:02:44]} 23. Rxg7 {[%emt 0:00:13]} Qxg7 {[%emt 0:00:10]} 24. Rg1 {[%emt 0:00:10]} Bg6 {[%emt 0:00:02]} 25. Bd4 {[%emt 0:00:46]} 1-0

[Event "5th EKA IIFL Investment 2019"]
[Site "Mumbai"]
[Date "2020.01.06"]
[Round "8.11"]
[White "Sammed Jaykumar, Shete"]
[Black "Gholami, Aryan"]
[Result "1/2-1/2"]
[ECO "B10"]
[WhiteElo "2381"]
[BlackElo "2541"]
[Annotator "RC"]
[PlyCount "80"]
[EventDate "2019.12.30"]
[EventType "swiss"]
[EventCountry "IND"]
[SourceTitle "playchess.com"]
[Source "ChessBase"]
[SourceQuality "1"]
[TimeControl "40/5400+30:1800+30"]

1. e4 {[%emt 0:00:00]} c6 {[%emt 0:00:00]} 2. Nf3 {[%emt 0:00:00]} d5 {[%emt 0:00:00]} 3. Nc3 {[%emt 0:00:00]} dxe4 {[%emt 0:00:00]} 4. Nxe4 {[%emt 0:00:00]} Nf6 {[%emt 0:00:00]} 5. Qe2 {[%emt 0:00:00]} Nxe4 {[%emt 0:00:00]} 6. Qxe4 {[%emt 0:00:02]} Qa5 {[%emt 0:00:04]} 7. Bc4 {[%emt 0:00:14]} Bf5 {[%emt 0:00:08]} 8. Qe2 {[%emt 0:00:14]} e6 {[%emt 0:09:00]} 9. O-O {[%emt 0:00:42]} Nd7 {[%emt 0:08:21]} 10. d4 {[%emt 0:00:13]} Be7 {[%emt 0:05:39]} 11. Bf4 {[%emt 0:00:55]} O-O {[%emt 0:00:13]} 12. c3 {[%emt 0:01:26]} Rfe8 {[%emt 0:04:58]} 13. Rfe1 {[%emt 0:01:33]} Rad8 {[%emt 0:05:34]} 14. a4 {[%emt 0:05:41]} Bg4 {[%emt 0:04:50]} 15. Bg3 {[%emt 0:16:46]} Qh5 {[%emt 0:01:56]} 16. a5 {[%emt 0:02:22]} a6 {[%emt 0:03:51]} 17. h3 {[%emt 0:11:59]} Bxf3 {[%emt 0:00:58]} 18. Qxf3 {[%emt 0:00:06]} Qxf3 {[%emt 0:00:06]} 19. gxf3 {[%emt 0:00:04]} Nf6 {[%emt 0:05:11]} 20. Kg2 {[%emt 0:02:11]} g6 {[%emt 0:01:27]} 21. h4 {[%emt 0:05:28]} Nh5 {[%emt 0:02:52]} 22. Kh3 {[%emt 0:05:39]} Ng7 {[%emt 0:06:47]} 23. Re2 {[%emt 0:01:13]} h5 {[%emt 0:05:30]} 24. Bb3 {[%emt 0:07:07]} Nf5 {[%emt 0:02:31]} 25. Bc2 {[%emt 0:02:33]} c5 {[%emt 0:05:51]} 26. dxc5 {[%emt 0:01:30]} Bxc5 {[%emt 0:00:44]} 27. Ra4 {[%emt 0:01:35]} Nxg3 {[%emt 0:03:37]} 28. fxg3 {[%emt 0:03:20]} Be7 {[%emt 0:00:19]} 29. Rc4 {[%emt 0:01:57]} Rc8 {[%emt 0:00:12]} 30. Rxc8 {[%emt 0:03:35]} Rxc8 {[%emt 0:00:06]} 31. Rd2 {[%emt 0:00:07]} Rc7 {[%emt 0:00:29]} 32. Ba4 {[%emt 0:01:56]} Kf8 {[%emt 0:04:39]} 33. Rd7 {[%emt 0:01:14]} Rc5 {[%emt 0:00:05]} 34. Rxb7 {[%emt 0:04:06]} Rxa5 {[%emt 0:01:33]} 35. Bc6 {[%emt 0:09:00]} Ra1 {[%emt 0:01:18]} 36. Rb8+ {[%emt 0:03:56]} Kg7 {[%emt 0:00:12]} 37. Rb7 {[%emt 0:00:04]} Kf8 {[%emt 0:00:04]} 38. Rb8+ {[%emt 0:00:06]} Kg7 {[%emt 0:00:03]} 39. Rb7 {[%emt 0:00:05]} Kf8 {[%emt 0:00:05]} 40. Rb8+ {[%emt 0:00:00]} Kg7 {[%emt 0:00:00]} 1/2-1/2

[Event "5th EKA IIFL Investment 2019"]
[Site "Mumbai"]
[Date "2020.01.06"]
[Round "8.12"]
[White "Muthaiah AL"]
[Black "Nigmatov, Ortik"]
[Result "1-0"]
[ECO "E62"]
[WhiteElo "2363"]
[BlackElo "2474"]
[Annotator "RC"]
[PlyCount "77"]
[EventDate "2019.12.30"]
[EventType "swiss"]
[EventCountry "IND"]
[SourceTitle "playchess.com"]
[Source "ChessBase"]
[SourceQuality "1"]
[TimeControl "40/5400+30:1800+30"]

1. Nf3 {[%emt 0:00:00]} Nf6 {[%emt 0:04:13]} 2. d4 {[%emt 0:00:46]} g6 {[%emt 0:00:06]} 3. c4 {[%emt 0:00:31]} Bg7 {[%emt 0:00:05]} 4. g3 {[%emt 0:00:37]} O-O {[%emt 0:00:05]} 5. Bg2 {[%emt 0:00:11]} d6 {[%emt 0:00:02]} 6. O-O {[%emt 0:01:02]} Nc6 {[%emt 0:00:02]} 7. Nc3 {[%emt 0:00:27]} e5 {[%emt 0:00:06]} 8. dxe5 {[%emt 0:07:09]} dxe5 {[%emt 0:00:06]} 9. Bg5 {[%emt 0:00:59]} Be6 {[%emt 0:00:07]} 10. Nd5 {[%emt 0:08:59]} Bxd5 {[%emt 0:11:08]} 11. Bxf6 {[%emt 0:01:30]} Bxf6 {[%emt 0:04:00]} 12. cxd5 {[%emt 0:02:55]} Ne7 {[%emt 0:00:46]} 13. e4 {[%emt 0:01:18]} Nc8 {[%emt 0:01:50]} 14. Nd2 {[%emt 0:03:17]} Nd6 {[%emt 0:00:18]} 15. Qb3 {[%emt 0:01:50]} b5 {[%emt 0:08:29]} 16. Rac1 {[%emt 0:03:54]} Bg7 {[%emt 0:02:05]} 17. Rc6 {[%emt 0:02:30]} f5 {[%emt 0:01:43]} 18. Qc2 {[%emt 0:01:40]} Rf7 {[%emt 0:16:33]} 19. Nb3 {[%emt 0:00:49]} Nb7 {[%emt 0:06:08]} 20. exf5 {[%emt 0:05:18]} gxf5 {[%emt 0:03:18]} 21. d6 {[%emt 0:02:00]} e4 {[%emt 0:03:54]} 22. dxc7 {[%emt 0:01:02]} Qc8 {[%emt 0:00:02]} 23. Rd1 {[%emt 0:17:50]} Be5 {[%emt 0:02:19]} 24. Nd4 {[%emt 0:01:40]} Rxc7 {[%emt 0:09:06]} 25. Rxc7 {[%emt 0:01:38]} Qxc7 {[%emt 0:02:12]} 26. Qxc7 {[%emt 0:00:22]} Bxc7 {[%emt 0:00:05]} 27. Nxf5 {[%emt 0:00:20]} Rd8 {[%emt 0:02:23]} 28. Rxd8+ {[%emt 0:00:51]} Bxd8 {[%emt 0:00:28]} 29. Bxe4 {[%emt 0:01:01]} Nc5 {[%emt 0:00:09]} 30. Bc2 {[%emt 0:03:26]} Bf6 {[%emt 0:01:02]} 31. Nd6 {[%emt 0:02:26]} a6 {[%emt 0:03:55]} 32. b3 {[%emt 0:00:27]} Be7 {[%emt 0:00:16]} 33. Nf5 {[%emt 0:00:50]} Bf6 {[%emt 0:00:26]} 34. Kg2 {[%emt 0:02:19]} Nd7 {[%emt 0:04:08]} 35. f4 {[%emt 0:00:57]} Nb6 {[%emt 0:01:00]} 36. Be4 {[%emt 0:00:36]} a5 {[%emt 0:00:27]} 37. Nd6 {[%emt 0:01:47]} b4 {[%emt 0:00:31]} 38. Nc4 {[%emt 0:00:49]} Nxc4 {[%emt 0:01:35]} 39. Bd5+ {[%emt 0:00:07]} 1-0